[Event "Titled Tuesday Blitz April 19 Early 2022"]
[White "Seo, Jung Min"]
[Black "Vusatiuk, Vladimir"]
[WhiteFideId "1734687"]
[BlackFideId "14118610"]
[WhiteElo "2401"]
[BlackElo "2157"]
[Result "1-0"]
[Round "02"]
[TimeControl "180+1"]
[Date "2022.04.19"]
[WhiteClock "0:00:29"]
[BlackClock "0:00:05"]

1. d4 {[%clk 0:03:00]}  Nf6 {[%clk 0:02:58]} 2. Nf3 {[%clk 0:03:01]}  e6 {[%clk 0:02:54]} 3. c4 {[%clk 0:03:01]}  b6 {[%clk 0:02:53]} 4. a3 {[%clk 0:03:00]}  Bb7 {[%clk 0:02:53]} 5. Nc3 {[%clk 0:03:00]}  Ne4 {[%clk 0:02:53]} 6. Nxe4 {[%clk 0:02:58]}  Bxe4 {[%clk 0:02:54]} 7. Nd2 {[%clk 0:02:58]}  Bb7 {[%clk 0:02:52]} 8. e4 {[%clk 0:02:58]}  d5 {[%clk 0:02:34]} 9. cxd5 {[%clk 0:02:51]}  exd5 {[%clk 0:02:35]} 10. e5 {[%clk 0:02:45]}  c5 {[%clk 0:02:35]} 11. Nf3 {[%clk 0:02:42]}  Nc6 {[%clk 0:02:28]} 12. Bb5 {[%clk 0:02:32]}  Be7 {[%clk 0:02:26]} 13. Qa4 {[%clk 0:02:28]}  Qd7 {[%clk 0:02:11]} 14. O-O {[%clk 0:02:27]}  a6 {[%clk 0:02:10]} 15. Bxc6 {[%clk 0:02:04]}  Bxc6 {[%clk 0:02:10]} 16. Qc2 {[%clk 0:02:03]}  O-O {[%clk 0:02:06]} 17. Bg5 {[%clk 0:02:03]}  f6 {[%clk 0:01:45]} 18. exf6 {[%clk 0:02:03]}  gxf6 {[%clk 0:01:45]} 19. Bh6 {[%clk 0:02:02]}  Rfe8 {[%clk 0:01:43]} 20. Rfe1 {[%clk 0:02:01]}  Kh8 {[%clk 0:01:32]} 21. Re2 {[%clk 0:01:52]}  Rg8 {[%clk 0:01:26]} 22. Bf4 {[%clk 0:01:51]}  Rg4 {[%clk 0:01:14]} 23. Bg3 {[%clk 0:01:50]}  Bb5 {[%clk 0:01:05]} 24. Rd2 {[%clk 0:01:45]}  Rag8 {[%clk 0:00:59]} 25. Re1 {[%clk 0:01:43]}  Bd6 {[%clk 0:00:46]} 26. dxc5 {[%clk 0:01:41]}  Bxc5 {[%clk 0:00:45]} 27. b4 {[%clk 0:01:38]}  Bf8 {[%clk 0:00:42]} 28. Nd4 {[%clk 0:01:35]}  Bh6 {[%clk 0:00:31]} 29. f4 {[%clk 0:01:26]}  Bxf4 {[%clk 0:00:21]} 30. Bxf4 {[%clk 0:01:24]}  Rxf4 {[%clk 0:00:22]} 31. Nxb5 {[%clk 0:01:15]}  Qxb5 {[%clk 0:00:20]} 32. h3 {[%clk 0:01:07]}  Qc4 {[%clk 0:00:20]} 33. Qd1 {[%clk 0:01:04]}  d4 {[%clk 0:00:19]} 34. Qh5 {[%clk 0:01:01]}  Qc7 {[%clk 0:00:15]} 35. Kh1 {[%clk 0:00:57]}  Qc3 {[%clk 0:00:11]} 36. Red1 {[%clk 0:00:56]}  Qxa3 {[%clk 0:00:06]} 37. Qh6 {[%clk 0:00:52]}  Rf5 {[%clk 0:00:05]} 38. Rxd4 {[%clk 0:00:50]}  Qg3 {[%clk 0:00:05]} 39. R4d2 {[%clk 0:00:46]}  Rfg5 {[%clk 0:00:04]} 40. Qxf6+ {[%clk 0:00:45]}  R5g7 {[%clk 0:00:04]} 41. Qxb6 {[%clk 0:00:43]}  Qg6 {[%clk 0:00:02]} 42. Qc5 {[%clk 0:00:39]}  Qh6 {[%clk 0:00:02]} 43. Qe5 {[%clk 0:00:36]}  Qg6 {[%clk 0:00:01]} 44. Rg1 {[%clk 0:00:32]}  h6 {[%clk 0:00:02]} 45. Rd6 {[%clk 0:00:31]}  Kh7 {[%clk 0:00:02]} 46. Rxg6 {[%clk 0:00:30]}  Rxg6 {[%clk 0:00:03]} 47. Qe4 {[%clk 0:00:30]}  Rg7 {[%clk 0:00:04]} 48. Kh2 {[%clk 0:00:30]}  Kh8 {[%clk 0:00:05]} 49. Rd1 {[%clk 0:00:29]} 1-0


[Site "https://www.chess.com"]

[Event "Titled Tuesday Blitz April 19 Early 2022"]
[White "Shimanov, Aleksandr"]
[Black "Jaferian, Koosha"]
[WhiteFideId "4198603"]
[BlackFideId "12507440"]
[WhiteElo "2636"]
[BlackElo "2030"]
[Result "1-0"]
[Round "02"]
[TimeControl "180+1"]
[Date "2022.04.19"]
[WhiteClock "0:00:20"]
[BlackClock "0:00:05"]

1. d4 {[%clk 0:03:00]}  Nf6 {[%clk 0:03:00]} 2. Nc3 {[%clk 0:03:00]}  d5 {[%clk 0:02:59]} 3. Bf4 {[%clk 0:02:59]}  g6 {[%clk 0:02:57]} 4. e3 {[%clk 0:02:53]}  Bg7 {[%clk 0:02:56]} 5. h4 {[%clk 0:02:53]}  h5 {[%clk 0:02:57]} 6. Nf3 {[%clk 0:02:52]}  Bg4 {[%clk 0:02:56]} 7. Qd2 {[%clk 0:02:51]}  Bxf3 {[%clk 0:02:56]} 8. gxf3 {[%clk 0:02:52]}  c6 {[%clk 0:02:56]} 9. e4 {[%clk 0:02:50]}  e6 {[%clk 0:02:57]} 10. O-O-O {[%clk 0:02:50]}  Nbd7 {[%clk 0:02:42]} 11. Kb1 {[%clk 0:02:45]}  O-O {[%clk 0:02:36]} 12. Rg1 {[%clk 0:02:42]}  b5 {[%clk 0:02:35]} 13. Bd3 {[%clk 0:02:39]}  Nb6 {[%clk 0:02:31]} 14. Bg5 {[%clk 0:02:19]}  Qd7 {[%clk 0:02:16]} 15. Ne2 {[%clk 0:02:01]}  Nc4 {[%clk 0:02:16]} 16. Qf4 {[%clk 0:01:57]}  Nh7 {[%clk 0:02:11]} 17. Bh6 {[%clk 0:01:57]}  Qd6 {[%clk 0:01:40]} 18. e5 {[%clk 0:01:40]}  Qb4 {[%clk 0:01:39]} 19. b3 {[%clk 0:01:22]}  Qa3 {[%clk 0:01:39]} 20. Bxc4 {[%clk 0:01:15]}  bxc4 {[%clk 0:01:33]} 21. Bxg7 {[%clk 0:01:15]}  Kxg7 {[%clk 0:01:33]} 22. Qe3 {[%clk 0:01:05]}  Rab8 {[%clk 0:01:26]} 23. Nf4 {[%clk 0:00:56]}  Kh8 {[%clk 0:01:09]} 24. Ka1 {[%clk 0:00:54]}  a5 {[%clk 0:01:02]} 25. Rb1 {[%clk 0:00:52]}  a4 {[%clk 0:00:58]} 26. bxc4 {[%clk 0:00:51]}  Qe7 {[%clk 0:00:50]} 27. c5 {[%clk 0:00:41]}  Rxb1+ {[%clk 0:00:37]} 28. Kxb1 {[%clk 0:00:40]}  Rb8+ {[%clk 0:00:36]} 29. Ka1 {[%clk 0:00:40]}  Qb7 {[%clk 0:00:33]} 30. Qc3 {[%clk 0:00:39]}  Qb5 {[%clk 0:00:27]} 31. Nd3 {[%clk 0:00:38]}  Nf8 {[%clk 0:00:25]} 32. a3 {[%clk 0:00:38]}  Nd7 {[%clk 0:00:23]} 33. f4 {[%clk 0:00:30]}  Kg7 {[%clk 0:00:23]} 34. Rc1 {[%clk 0:00:25]}  Nf8 {[%clk 0:00:15]} 35. Qb4 {[%clk 0:00:22]}  Nd7 {[%clk 0:00:11]} 36. Qxb5 {[%clk 0:00:22]}  Rxb5 {[%clk 0:00:12]} 37. Nb4 {[%clk 0:00:22]}  Nb8 {[%clk 0:00:12]} 38. Kb2 {[%clk 0:00:22]}  Na6 {[%clk 0:00:11]} 39. Kc3 {[%clk 0:00:22]}  Nb8 {[%clk 0:00:10]} 40. Rb1 {[%clk 0:00:21]}  Kf8 {[%clk 0:00:09]} 41. Rb2 {[%clk 0:00:22]}  Ke8 {[%clk 0:00:10]} 42. Nd3 {[%clk 0:00:22]}  Rxb2 {[%clk 0:00:09]} 43. Nxb2 {[%clk 0:00:22]}  Kd7 {[%clk 0:00:10]} 44. Nxa4 {[%clk 0:00:22]}  Kc7 {[%clk 0:00:09]} 45. Nb2 {[%clk 0:00:22]}  Na6 {[%clk 0:00:09]} 46. Nd3 {[%clk 0:00:20]}  Kb7 {[%clk 0:00:09]} 47. Ne1 {[%clk 0:00:20]}  Nc7 {[%clk 0:00:10]} 48. Nf3 {[%clk 0:00:20]}  Nb5+ {[%clk 0:00:10]} 49. Kb4 {[%clk 0:00:20]}  Ka6 {[%clk 0:00:08]} 50. a4 {[%clk 0:00:20]}  Nc7 {[%clk 0:00:05]} 51. Ng5 {[%clk 0:00:20]} 1-0


[Site "https://www.chess.com"]

[Event "Titled Tuesday Blitz April 19 Early 2022"]
[White "Shipov, Sergei"]
[Black "Pinheiro, Iung Alicio de O."]
[WhiteFideId "4113624"]
[BlackFideId "2104350"]
[WhiteElo "2797"]
[BlackElo "2562"]
[Result "1-0"]
[Round "02"]
[TimeControl "180+1"]
[Date "2022.04.19"]
[WhiteClock "0:01:37"]
[BlackClock "0:00:07"]

1. d4 {[%clk 0:03:00]}  Nf6 {[%clk 0:02:59]} 2. c4 {[%clk 0:03:00]}  g6 {[%clk 0:02:59]} 3. Nc3 {[%clk 0:03:00]}  d5 {[%clk 0:02:59]} 4. cxd5 {[%clk 0:02:58]}  Nxd5 {[%clk 0:03:00]} 5. Nf3 {[%clk 0:02:58]}  Bg7 {[%clk 0:03:00]} 6. Na4 {[%clk 0:02:59]}  Nb6 {[%clk 0:02:37]} 7. e4 {[%clk 0:02:58]}  O-O {[%clk 0:02:30]} 8. Be2 {[%clk 0:02:57]}  Nxa4 {[%clk 0:02:23]} 9. Qxa4 {[%clk 0:02:56]}  Bg4 {[%clk 0:02:24]} 10. Be3 {[%clk 0:02:55]}  Nd7 {[%clk 0:01:42]} 11. O-O {[%clk 0:02:49]}  c6 {[%clk 0:01:35]} 12. h3 {[%clk 0:02:47]}  Bxf3 {[%clk 0:01:35]} 13. Bxf3 {[%clk 0:02:47]}  e5 {[%clk 0:01:36]} 14. d5 {[%clk 0:02:39]}  Nb6 {[%clk 0:01:32]} 15. Qb3 {[%clk 0:02:38]}  cxd5 {[%clk 0:01:27]} 16. exd5 {[%clk 0:02:39]}  Qd6 {[%clk 0:01:26]} 17. Rac1 {[%clk 0:02:28]}  Rac8 {[%clk 0:01:26]} 18. a4 {[%clk 0:02:28]}  f5 {[%clk 0:01:20]} 19. a5 {[%clk 0:02:27]}  e4 {[%clk 0:01:05]} 20. axb6 {[%clk 0:01:51]}  exf3 {[%clk 0:01:04]} 21. bxa7 {[%clk 0:01:51]}  fxg2 {[%clk 0:01:03]} 22. Rfd1 {[%clk 0:01:51]}  f4 {[%clk 0:00:34]} 23. Rxc8 {[%clk 0:01:50]}  Rxc8 {[%clk 0:00:34]} 24. Qxb7 {[%clk 0:01:50]}  Rd8 {[%clk 0:00:14]} 25. Bb6 {[%clk 0:01:41]}  Re8 {[%clk 0:00:09]} 26. a8=Q {[%clk 0:01:41]}  Rxa8 {[%clk 0:00:07]} 27. Qxa8+ {[%clk 0:01:40]}  Bf8 {[%clk 0:00:07]} 28. Qc6 {[%clk 0:01:37]}  Qe5 {[%clk 0:00:07]} 29. Qe6+ {[%clk 0:01:37]} 1-0


[Site "https://www.chess.com"]

[Event "Titled Tuesday Blitz April 19 Early 2022"]
[White "Shirov, Alexei"]
[Black "Sztokbant, Bernardo Vainzoff"]
[WhiteFideId "2209390"]
[BlackFideId "2115956"]
[WhiteElo "2678"]
[BlackElo "2225"]
[Result "1-0"]
[Round "02"]
[TimeControl "180+1"]
[Date "2022.04.19"]
[WhiteClock "0:00:33"]
[BlackClock "0:00:02"]

1. e4 {[%clk 0:03:00]}  c5 {[%clk 0:02:57]} 2. Nc3 {[%clk 0:03:00]}  e6 {[%clk 0:02:55]} 3. g3 {[%clk 0:02:53]}  Nc6 {[%clk 0:02:55]} 4. Nge2 {[%clk 0:02:50]}  d5 {[%clk 0:02:52]} 5. exd5 {[%clk 0:02:49]}  exd5 {[%clk 0:02:53]} 6. d4 {[%clk 0:02:49]}  Nf6 {[%clk 0:02:53]} 7. Bg2 {[%clk 0:02:49]}  h6 {[%clk 0:02:28]} 8. O-O {[%clk 0:02:46]}  Be6 {[%clk 0:02:21]} 9. Re1 {[%clk 0:02:36]}  Bd6 {[%clk 0:02:16]} 10. dxc5 {[%clk 0:02:34]}  Bxc5 {[%clk 0:02:16]} 11. Nf4 {[%clk 0:02:33]}  O-O {[%clk 0:02:08]} 12. Ncxd5 {[%clk 0:02:21]}  Nxd5 {[%clk 0:02:03]} 13. Bxd5 {[%clk 0:02:15]}  Bxd5 {[%clk 0:01:56]} 14. Nxd5 {[%clk 0:02:10]}  Nd4 {[%clk 0:01:52]} 15. c4 {[%clk 0:02:07]}  b5 {[%clk 0:01:41]} 16. Re4 {[%clk 0:02:02]}  Ne6 {[%clk 0:01:11]} 17. b4 {[%clk 0:01:49]}  Bxb4 {[%clk 0:01:06]} 18. Bb2 {[%clk 0:01:48]}  Bc5 {[%clk 0:01:00]} 19. cxb5 {[%clk 0:01:47]}  Re8 {[%clk 0:00:54]} 20. Qd3 {[%clk 0:01:33]}  Rc8 {[%clk 0:00:27]} 21. Rae1 {[%clk 0:01:30]}  Qg5 {[%clk 0:00:24]} 22. h4 {[%clk 0:01:25]}  Qf5 {[%clk 0:00:16]} 23. Ne3 {[%clk 0:00:53]}  Qf3 {[%clk 0:00:14]} 24. Ra4 {[%clk 0:00:42]}  Rcd8 {[%clk 0:00:10]} 25. Qe2 {[%clk 0:00:42]}  Qb7 {[%clk 0:00:08]} 26. Nf5 {[%clk 0:00:38]}  Kh7 {[%clk 0:00:03]} 27. Qc2 {[%clk 0:00:36]}  Kg8 {[%clk 0:00:02]} 28. Rg4 {[%clk 0:00:33]} 1-0


[Site "https://www.chess.com"]

[Event "Titled Tuesday Blitz April 19 Early 2022"]
[White "Silva Lucena, Cristian"]
[Black "Lewicki, Miroslaw"]
[WhiteFideId "2232588"]
[BlackFideId "1113380"]
[WhiteElo "2223"]
[BlackElo "2283"]
[Result "1-0"]
[Round "02"]
[TimeControl "180+1"]
[Date "2022.04.19"]
[WhiteClock "0:02:07"]
[BlackClock "0:02:53"]

1. e4 {[%clk 0:03:00]}  c5 {[%clk 0:02:57]} 2. Nf3 {[%clk 0:03:00]}  d6 {[%clk 0:02:58]} 3. d4 {[%clk 0:03:01]}  cxd4 {[%clk 0:02:58]} 4. Nxd4 {[%clk 0:03:01]}  Nf6 {[%clk 0:02:59]} 5. Nc3 {[%clk 0:03:02]}  a6 {[%clk 0:02:58]} 6. Bg5 {[%clk 0:03:01]}  Nbd7 {[%clk 0:02:57]} 7. f4 {[%clk 0:03:01]}  Qc7 {[%clk 0:02:58]} 8. Qf3 {[%clk 0:03:01]}  b5 {[%clk 0:02:58]} 9. O-O-O {[%clk 0:02:54]}  Bb7 {[%clk 0:02:58]} 10. Bxf6 {[%clk 0:02:53]}  gxf6 {[%clk 0:02:58]} 11. Nd5 {[%clk 0:02:52]}  Qa5 {[%clk 0:02:55]} 12. Kb1 {[%clk 0:02:42]}  e6 {[%clk 0:02:55]} 13. b4 {[%clk 0:02:07]}  Qd8 {[%clk 0:02:53]} 14. Nxe6 {[%clk 0:02:07]}  fxe6 {[%clk 0:02:53]} 15. Qh5# {[%clk 0:02:07]} 1-0


[Site "https://www.chess.com"]

[Event "Titled Tuesday Blitz April 19 Early 2022"]
[White "Simonovic, Miroslav"]
[Black "Papp, Petra"]
[WhiteFideId "919152"]
[BlackFideId "739049"]
[WhiteElo "2043"]
[BlackElo "2259"]
[Result "0-1"]
[Round "02"]
[TimeControl "180+1"]
[Date "2022.04.19"]
[WhiteClock "0:00:14"]
[BlackClock "0:00:09"]

1. d4 {[%clk 0:03:00]}  Nf6 {[%clk 0:02:59]} 2. Bg5 {[%clk 0:03:01]}  c5 {[%clk 0:02:55]} 3. Bxf6 {[%clk 0:03:00]}  gxf6 {[%clk 0:02:51]} 4. c3 {[%clk 0:03:01]}  d5 {[%clk 0:02:49]} 5. e3 {[%clk 0:03:00]}  Nc6 {[%clk 0:02:48]} 6. g3 {[%clk 0:02:55]}  Bg7 {[%clk 0:02:45]} 7. Bg2 {[%clk 0:02:54]}  O-O {[%clk 0:02:45]} 8. Ne2 {[%clk 0:02:54]}  Qb6 {[%clk 0:02:22]} 9. Qb3 {[%clk 0:02:37]}  e6 {[%clk 0:02:11]} 10. Nd2 {[%clk 0:02:31]}  c4 {[%clk 0:02:09]} 11. Qxb6 {[%clk 0:02:30]}  axb6 {[%clk 0:02:09]} 12. O-O {[%clk 0:02:31]}  Rd8 {[%clk 0:02:03]} 13. a3 {[%clk 0:02:29]}  e5 {[%clk 0:02:02]} 14. f4 {[%clk 0:02:25]}  b5 {[%clk 0:01:39]} 15. Rf2 {[%clk 0:02:14]}  Be6 {[%clk 0:01:31]} 16. Raf1 {[%clk 0:02:09]}  Rd6 {[%clk 0:01:18]} 17. f5 {[%clk 0:02:01]}  Bd7 {[%clk 0:01:16]} 18. e4 {[%clk 0:01:52]}  exd4 {[%clk 0:01:07]} 19. exd5 {[%clk 0:01:44]}  Ne7 {[%clk 0:00:58]} 20. Nxd4 {[%clk 0:01:27]}  Bh6 {[%clk 0:00:46]} 21. Ne4 {[%clk 0:01:25]}  Rda6 {[%clk 0:00:44]} 22. d6 {[%clk 0:01:17]}  Nd5 {[%clk 0:00:37]} 23. Nc5 {[%clk 0:01:11]}  Rxd6 {[%clk 0:00:32]} 24. Nxb7 {[%clk 0:01:05]}  Raa6 {[%clk 0:00:32]} 25. Nxd6 {[%clk 0:01:04]}  Rxd6 {[%clk 0:00:32]} 26. Re2 {[%clk 0:00:52]}  Ne3 {[%clk 0:00:31]} 27. Rf3 {[%clk 0:00:51]}  Nd5 {[%clk 0:00:15]} 28. g4 {[%clk 0:00:50]}  Bg5 {[%clk 0:00:13]} 29. h3 {[%clk 0:00:49]}  Nf4 {[%clk 0:00:13]} 30. Re7 {[%clk 0:00:48]}  Nd3 {[%clk 0:00:13]} 31. b4 {[%clk 0:00:28]}  cxb3 {[%clk 0:00:09]} 32. Nxb3 {[%clk 0:00:28]}  Ne5 {[%clk 0:00:07]} 33. Rf1 {[%clk 0:00:20]}  Kf8 {[%clk 0:00:07]} 34. Rxd7 {[%clk 0:00:17]}  Rxd7 {[%clk 0:00:08]} 35. Nc5 {[%clk 0:00:17]}  Rd2 {[%clk 0:00:07]} 36. Ne4 {[%clk 0:00:16]}  Be3+ {[%clk 0:00:07]} 37. Kh1 {[%clk 0:00:16]}  Ra2 {[%clk 0:00:07]} 38. Nxf6 {[%clk 0:00:15]}  Nd3 {[%clk 0:00:06]} 39. Nxh7+ {[%clk 0:00:14]}  Kg7 {[%clk 0:00:05]} 40. Be4 {[%clk 0:00:10]}  Nf2+ {[%clk 0:00:06]} 41. Rxf2 {[%clk 0:00:05]}  Bxf2 {[%clk 0:00:04]} 42. f6+ {[%clk 0:00:05]}  Kg8 {[%clk 0:00:04]} 43. Ng5 {[%clk 0:00:04]}  Be3 {[%clk 0:00:03]} 44. Nf3 {[%clk 0:00:04]}  Rxa3 {[%clk 0:00:03]} 45. Bc6 {[%clk 0:00:03]}  Rxc3 {[%clk 0:00:03]} 46. Bxb5 {[%clk 0:00:03]}  Bf4 {[%clk 0:00:03]} 47. Be8 {[%clk 0:00:03]}  Rxf3 {[%clk 0:00:03]} 48. Kg2 {[%clk 0:00:04]}  Re3 {[%clk 0:00:03]} 49. Bc6 {[%clk 0:00:04]}  Re6 {[%clk 0:00:04]} 50. Kf3 {[%clk 0:00:05]}  Rxf6 {[%clk 0:00:04]} 51. Bd5 {[%clk 0:00:04]}  Bd6+ {[%clk 0:00:05]} 52. Kg2 {[%clk 0:00:04]}  Rh6 {[%clk 0:00:06]} 53. Be4 {[%clk 0:00:04]}  Kg7 {[%clk 0:00:06]} 54. Bf5 {[%clk 0:00:05]}  Rh8 {[%clk 0:00:06]} 55. g5 {[%clk 0:00:03]}  f6 {[%clk 0:00:07]} 56. Bg4 {[%clk 0:00:03]}  fxg5 {[%clk 0:00:07]} 57. Kf3 {[%clk 0:00:04]}  Kf6 {[%clk 0:00:07]} 58. Kg2 {[%clk 0:00:05]}  Bf4 {[%clk 0:00:08]} 59. Kf3 {[%clk 0:00:06]}  Rd8 {[%clk 0:00:08]} 60. Kg2 {[%clk 0:00:06]}  Rd3 {[%clk 0:00:07]} 61. Kf2 {[%clk 0:00:06]}  Ke5 {[%clk 0:00:07]} 62. Kg2 {[%clk 0:00:07]}  Rg3+ {[%clk 0:00:07]} 63. Kf2 {[%clk 0:00:07]}  Rxg4 {[%clk 0:00:07]} 64. hxg4 {[%clk 0:00:07]}  Ke4 {[%clk 0:00:07]} 65. Kg2 {[%clk 0:00:08]}  Be3 {[%clk 0:00:08]} 66. Kh3 {[%clk 0:00:09]}  Kf4 {[%clk 0:00:08]} 67. Kg2 {[%clk 0:00:09]}  Kxg4 {[%clk 0:00:08]} 68. Kh2 {[%clk 0:00:10]}  Kh4 {[%clk 0:00:08]} 69. Kg2 {[%clk 0:00:11]}  g4 {[%clk 0:00:09]} 70. Kh2 {[%clk 0:00:12]}  g3+ {[%clk 0:00:09]} 71. Kh1 {[%clk 0:00:13]}  Kg4 {[%clk 0:00:09]} 72. Kg2 {[%clk 0:00:13]}  Bg5 {[%clk 0:00:10]} 73. Kh1 {[%clk 0:00:13]}  Kh3 {[%clk 0:00:10]} 74. Kg1 {[%clk 0:00:13]}  g2 {[%clk 0:00:10]} 75. Kf2 {[%clk 0:00:13]}  Kh2 {[%clk 0:00:11]} 76. Kf3 {[%clk 0:00:13]}  g1=Q {[%clk 0:00:09]} 77. Ke4 {[%clk 0:00:14]}  Qg4+ {[%clk 0:00:09]} 78. Kd3 {[%clk 0:00:14]}  Qf4 {[%clk 0:00:09]} 0-1


[Site "https://www.chess.com"]

[Event "Titled Tuesday Blitz April 19 Early 2022"]
[White "Smietanska, Wiktoria"]
[Black "Pires, Marcos Vinicius Torsani"]
[WhiteFideId "21869359"]
[BlackFideId "2118939"]
[WhiteElo "1893"]
[BlackElo "2273"]
[Result "0-1"]
[Round "02"]
[TimeControl "180+1"]
[Date "2022.04.19"]
[WhiteClock "0:00:36"]
[BlackClock "0:00:49"]

1. c4 {[%clk 0:03:00]}  Nf6 {[%clk 0:02:58]} 2. Nc3 {[%clk 0:03:00]}  g6 {[%clk 0:02:58]} 3. g3 {[%clk 0:03:01]}  Bg7 {[%clk 0:02:57]} 4. Bg2 {[%clk 0:03:01]}  O-O {[%clk 0:02:58]} 5. e4 {[%clk 0:03:02]}  d6 {[%clk 0:02:57]} 6. Nge2 {[%clk 0:03:03]}  c5 {[%clk 0:02:56]} 7. O-O {[%clk 0:03:03]}  Nc6 {[%clk 0:02:56]} 8. d3 {[%clk 0:03:04]}  Rb8 {[%clk 0:02:53]} 9. h3 {[%clk 0:03:03]}  a6 {[%clk 0:02:52]} 10. a4 {[%clk 0:03:02]}  Ne8 {[%clk 0:02:51]} 11. Be3 {[%clk 0:03:01]}  Nc7 {[%clk 0:02:48]} 12. d4 {[%clk 0:03:00]}  cxd4 {[%clk 0:02:49]} 13. Nxd4 {[%clk 0:02:59]}  Ne6 {[%clk 0:02:49]} 14. Nde2 {[%clk 0:02:56]}  Nc5 {[%clk 0:02:46]} 15. b3 {[%clk 0:02:52]}  Nb4 {[%clk 0:02:32]} 16. Rb1 {[%clk 0:02:26]}  f5 {[%clk 0:02:25]} 17. Qd2 {[%clk 0:01:56]}  fxe4 {[%clk 0:02:13]} 18. Nxe4 {[%clk 0:01:54]}  Nxe4 {[%clk 0:02:11]} 19. Qxb4 {[%clk 0:01:54]}  Nf6 {[%clk 0:02:00]} 20. Rbd1 {[%clk 0:01:49]}  Qc7 {[%clk 0:01:56]} 21. Bb6 {[%clk 0:01:46]}  Qd7 {[%clk 0:01:51]} 22. c5 {[%clk 0:01:45]}  d5 {[%clk 0:01:47]} 23. Nf4 {[%clk 0:01:30]}  e6 {[%clk 0:01:34]} 24. Rfe1 {[%clk 0:01:26]}  Qf7 {[%clk 0:01:26]} 25. Nd3 {[%clk 0:01:19]}  Nd7 {[%clk 0:01:18]} 26. Re2 {[%clk 0:01:08]}  Nxb6 {[%clk 0:01:16]} 27. Qxb6 {[%clk 0:01:07]}  Bd7 {[%clk 0:01:09]} 28. Nf4 {[%clk 0:01:07]}  g5 {[%clk 0:01:03]} 29. Nxd5 {[%clk 0:01:05]}  Bc6 {[%clk 0:00:55]} 30. Ne3 {[%clk 0:00:55]}  Bxg2 {[%clk 0:00:55]} 31. Kxg2 {[%clk 0:00:56]}  Qf3+ {[%clk 0:00:55]} 32. Kg1 {[%clk 0:00:49]}  Qxe2 {[%clk 0:00:52]} 33. Qxe6+ {[%clk 0:00:49]}  Kh8 {[%clk 0:00:52]} 34. Rf1 {[%clk 0:00:38]}  Rbe8 {[%clk 0:00:50]} 35. Qd7 {[%clk 0:00:37]}  Rxe3 {[%clk 0:00:48]} 36. fxe3 {[%clk 0:00:36]}  Rxf1# {[%clk 0:00:49]} 0-1


[Site "https://www.chess.com"]

[Event "Titled Tuesday Blitz April 19 Early 2022"]
[White "Starosta, Martyna"]
[Black "Constantinou, Peter"]
[WhiteFideId "21818754"]
[BlackFideId "413038"]
[WhiteElo "1716"]
[BlackElo "2230"]
[Result "1-0"]
[Round "02"]
[TimeControl "180+1"]
[Date "2022.04.19"]
[WhiteClock "0:02:03"]
[BlackClock "0:02:06"]

1. e4 {[%clk 0:03:00]}  c5 {[%clk 0:03:00]} 2. Nf3 {[%clk 0:03:00]}  e6 {[%clk 0:03:00]} 3. d4 {[%clk 0:03:01]}  cxd4 {[%clk 0:03:01]} 4. Nxd4 {[%clk 0:03:01]}  Nf6 {[%clk 0:03:02]} 5. Nc3 {[%clk 0:03:02]}  Nc6 {[%clk 0:03:02]} 6. a3 {[%clk 0:03:00]}  Be7 {[%clk 0:03:00]} 7. Be3 {[%clk 0:02:59]}  d6 {[%clk 0:02:57]} 8. Be2 {[%clk 0:02:59]}  O-O {[%clk 0:02:57]} 9. O-O {[%clk 0:02:59]}  a6 {[%clk 0:02:55]} 10. f4 {[%clk 0:02:59]}  e5 {[%clk 0:02:55]} 11. Nxc6 {[%clk 0:02:50]}  bxc6 {[%clk 0:02:56]} 12. fxe5 {[%clk 0:02:49]}  dxe5 {[%clk 0:02:57]} 13. Qe1 {[%clk 0:02:50]}  Ng4 {[%clk 0:02:53]} 14. Rd1 {[%clk 0:02:43]}  Qc7 {[%clk 0:02:50]} 15. Bc1 {[%clk 0:02:42]}  Bc5+ {[%clk 0:02:41]} 16. Kh1 {[%clk 0:02:39]}  Ne3 {[%clk 0:02:34]} 17. Bxe3 {[%clk 0:02:38]}  Bxe3 {[%clk 0:02:35]} 18. Bc4 {[%clk 0:02:33]}  Bd4 {[%clk 0:02:22]} 19. Qg3 {[%clk 0:02:28]}  Kh8 {[%clk 0:02:21]} 20. Rxd4 {[%clk 0:02:18]}  f5 {[%clk 0:02:10]} 21. exf5 {[%clk 0:02:11]}  Bxf5 {[%clk 0:02:09]} 22. Rd2 {[%clk 0:02:03]}  Bxc2 {[%clk 0:02:06]} 23. Rxc2 {[%clk 0:02:03]} 1-0


[Site "https://www.chess.com"]

[Event "Titled Tuesday Blitz April 19 Early 2022"]
[White "Stefanov, Plamen"]
[Black "Buchenau, Frank"]
[WhiteFideId "2900980"]
[BlackFideId "4604350"]
[WhiteElo "2137"]
[BlackElo "2193"]
[Result "1-0"]
[Round "02"]
[TimeControl "180+1"]
[Date "2022.04.19"]
[WhiteClock "0:00:40"]
[BlackClock "0:00:40"]

1. e4 {[%clk 0:03:00]}  e6 {[%clk 0:02:59]} 2. d4 {[%clk 0:02:59]}  d5 {[%clk 0:02:59]} 3. Nc3 {[%clk 0:02:59]}  Nf6 {[%clk 0:03:00]} 4. e5 {[%clk 0:02:59]}  Nfd7 {[%clk 0:03:00]} 5. f4 {[%clk 0:03:00]}  c5 {[%clk 0:03:00]} 6. Be3 {[%clk 0:02:58]}  cxd4 {[%clk 0:02:59]} 7. Bxd4 {[%clk 0:02:58]}  Nc6 {[%clk 0:02:59]} 8. Nf3 {[%clk 0:02:58]}  Nxd4 {[%clk 0:02:59]} 9. Nxd4 {[%clk 0:02:57]}  Qb6 {[%clk 0:02:56]} 10. Qd2 {[%clk 0:02:53]}  Bc5 {[%clk 0:02:50]} 11. O-O-O {[%clk 0:02:45]}  Bb4 {[%clk 0:02:44]} 12. a3 {[%clk 0:02:39]}  Be7 {[%clk 0:02:38]} 13. Na4 {[%clk 0:02:31]}  Qc7 {[%clk 0:02:36]} 14. Nb5 {[%clk 0:02:30]}  Qc6 {[%clk 0:02:30]} 15. Nac3 {[%clk 0:02:24]}  a6 {[%clk 0:02:27]} 16. Nd4 {[%clk 0:02:20]}  Qc7 {[%clk 0:02:27]} 17. g4 {[%clk 0:02:18]}  h5 {[%clk 0:02:23]} 18. gxh5 {[%clk 0:02:11]}  Rxh5 {[%clk 0:02:22]} 19. Be2 {[%clk 0:02:12]}  Rh3 {[%clk 0:02:17]} 20. Bg4 {[%clk 0:02:11]}  Rh4 {[%clk 0:02:11]} 21. h3 {[%clk 0:02:11]}  Nc5 {[%clk 0:02:09]} 22. f5 {[%clk 0:02:03]}  Qxe5 {[%clk 0:01:54]} 23. Rhe1 {[%clk 0:01:59]}  Ne4 {[%clk 0:01:52]} 24. Nxe4 {[%clk 0:01:54]}  dxe4 {[%clk 0:01:53]} 25. Nf3 {[%clk 0:01:23]}  Qd5 {[%clk 0:01:31]} 26. Nxh4 {[%clk 0:01:22]}  Qa2 {[%clk 0:01:27]} 27. c3 {[%clk 0:01:02]}  Bxh4 {[%clk 0:01:27]} 28. Rxe4 {[%clk 0:00:56]}  Kf8 {[%clk 0:00:40]} 29. fxe6 {[%clk 0:00:43]}  Bxe6 {[%clk 0:00:40]} 30. Bxe6 {[%clk 0:00:43]}  fxe6 {[%clk 0:00:40]} 31. Rxh4 {[%clk 0:00:40]} 1-0


[Site "https://www.chess.com"]